[Event "14th Danzhou Super GM 2023"]
[Site "Danzhou"]
[Date "2023.11.16"]
[Round "1.1"]
[White "Xu, Xiangyu"]
[Black "Bu, Xiangzhi"]
[Result "1-0"]
[ECO "D04"]
[WhiteElo "2623"]
[BlackElo "2677"]
[Annotator "TA"]
[PlyCount "81"]
[EventDate "2023.11.16"]
[EventType "tourn"]
[EventCountry "CHN"]
[SourceTitle "playchess.com"]
[Source "ChessBase"]
[SourceQuality "1"]
[TimeControl "2700+10"]

{[%evp 10,81,14,12,18,12,15,12,8,9,9,9,18,18,34,0,7,6,16,24,18,19,25,27,29,30,32,30,38,37,23,17,21,0,8,7,0,0,106,112,114,52,89,76,91,91,670,0,0,0,663,656,1097,1090,5562,5189,2450,2499,29974,29975,29974,29975,29975,29973,29973,29974,29974,29975,29974,5206,2322,2276,2270,2270]} 1. d4 {[%emt 0:00:08]} d5 {[%emt 0:00:10]} 2. Nf3 {[%emt 0:00:11]} Nf6 {[%emt 0:00:21]} 3. e3 {[%emt 0:00:03]} Bf5 {[%emt 0:02:22]} 4. Bd3 {[%emt 0:00:19]} Bxd3 {[%emt 0:02:05]} 5. Qxd3 {[%emt 0:00:03]} c6 {[%emt 0:00:05]} 6. O-O {[%emt 0:03:13]} e6 {[%emt 0:01:48]} 7. Nbd2 {[%emt 0:00:04]} Nbd7 {[%emt 0:00:55]} 8. e4 {[%emt 0:00:29]} dxe4 {[%emt 0:01:00] The position is equal.} 9. Nxe4 {[%emt 0:00:03]} Nxe4 {[%emt 0:00:32]} 10. Qxe4 {[%emt 0:00:03]} Bd6 {[%emt 0:00:07]} 11. Bg5 {[%emt 0:04:44]} Nf6 {[%emt 0:07:30]} 12. Qh4 {[%emt 0:05:42]} h6 {[%emt 0:07:32]} 13. Rfe1 {[%emt 0:00:09]} Kd7 {[%emt 0:02:42]} (13... Rg8 {simplifies} 14. Bxf6 Qxf6 15. Qxf6 gxf6 16. g3 h5) 14. Bxf6 {[%emt 0:01:57]} Qxf6 {[%emt 0:00:02]} 15. Qe4 {[%emt 0:00:11]} Rad8 {[%emt 0:04:29]} (15... Qf5 {feels hotter.} 16. Qe2 g5 17. b4 Ke7) 16. a4 {[%emt 0:04:57]} (16. c3 {looks sharper.} Qf5 17. Qe2 Ke7 18. Qc4) 16... Kc8 {[%emt 0:01:34]} 17. c3 g5 {[%emt 0:00:00]} 18. b4 {[%emt 0:00:20][%cal Bb2b4,Bb4b5][%mdl 32]} Kb8 {[%emt 0:00:00]} 19. g3 {[%emt 0:00:10]} h5 {[%emt 0:00:00]} 20. b5 {[%emt 0:00:10]} g4 {[%emt 0:11:22]} 21. Nh4 {[%emt 0:16:38]} (21. Nd2 $5 {[%cal Rb5c6]} c5 22. a5 $14) 21... c5 {[%emt 0:00:10]} 22. a5 {[%emt 0:00:22] aiming for a6.} Rd7 {[%emt 0:00:16]} (22... cxd4 {seems wilder.} 23. a6 Rd7 24. b6 axb6 25. axb7 Rxb7 26. cxd4 Rc8) 23. a6 {[%emt 0:01:44] Strongly threatening axb7.} b6 {[%emt 0:00:02]} (23... cxd4 $11 24. cxd4 Bb4) 24. Rad1 $1 $16 {[%emt 0:00:12] Hoping for dxc5.} Rhd8 {[%emt 0:00:04]} 25. Re2 {White is more active.} (25. Rd2 $16 {dxc5 is the strong threat.} cxd4 26. Rxd4) 25... cxd4 {[%emt 0:00:20]} 26. Rxd4 {[%emt 0:05:17]} Bc5 {[%emt 0:00:03] [#]} 27. Rd3 {[%emt 0:01:56][%mdl 64] And now Red2 would win. Deflection} Qe7 $2 {[%emt 0:01:20][%mdl 8192]} (27... Rxd3 $2 28. Qb7#) (27... Rc7 $16) (27... Be7 28. Ng2) 28. Qe5+ {[%emt 0:00:02]} Kc8 {[%emt 0:00:05]} 29. Qe4 {[%emt 0:00:15] Intending Qa8+ and mate.} Kb8 {[%emt 0:00:10] [#] Inhibits Qa8+.} (29... Rxd3 $2 {is a self mate.} 30. Qa8+ Kc7 31. Qb7+ Kd6 32. Qc6#) 30. Nf5 $1 {[%emt 0:00:25][%mdl 512]} Qf6 {[%emt 0:02:49][%cal Oe6f5] [#]} (30... Qf8 31. Red2) 31. Red2 $1 {[%emt 0:00:01]} Rd5 {[%emt 0:00:11]} 32. Rxd5 {[%emt 0:00:04]} exd5 {[%emt 0:00:12]} 33. Rxd5 {[%emt 0:00:04]} Rxd5 {[%emt 0:00:07]} 34. Qxd5 $18 {[%emt 0:00:06][%csl Ga6][%cal Rd5b7] KQB-KQN} Kc7 {[%emt 0:00:06]} 35. Qb7+ {[%emt 0:00:28]} Kd8 {[%emt 0:00:01]} 36. Qb8+ {[%emt 0:00:08]} Kd7 {[%emt 0:00:02]} 37. Qxa7+ {[%emt 0:00:21]} Ke6 {[%emt 0:00:05] [#]} 38. Nd4+ $1 {[%emt 0:00:07]} Kd5 {[%emt 0:00:01]} 39. Qb7+ {[%emt 0:00:22]} (39. Qd7+ $142 Kc4 40. a7 Qd6 41. Qxf7+ Qd5 42. a8=Q Qxf7 43. Qa2+ {[%mdl 64] Skewer} Kxc3 44. Ne2+ Kb4 45. Qxf7 Kxb5 46. Qxh5) 39... Kc4 {[%emt 0:00:01]} 40. a7 {[%emt 0:00:01]} Kxc3 {[%emt 0:00:07]} 41. a8=Q {[%emt 0:00:07] Magnificent play by Xu!   Weighted Error Value: White=0.24 (precise) /Black=0.45} ({Inferior is} 41. a8=B Bxd4 42. Qc6+ Kb4 43. Qxf6 (43. Qc2 Bxf2+ 44. Qxf2 Qa1+ 45. Qf1 Qxa8 $11) 43... Bxf6 $14) 1-0

[Event "14th Danzhou Super GM 2023"]
[Site "Danzhou"]
[Date "2023.11.16"]
[Round "1.2"]
[White "Bai, Jinshi"]
[Black "Jumabayev, Rinat"]
[Result "1-0"]
[ECO "D23"]
[WhiteElo "2585"]
[BlackElo "2588"]
[Annotator "RC"]
[PlyCount "101"]
[EventDate "2023.11.16"]
[EventType "tourn"]
[EventCountry "CHN"]
[SourceTitle "playchess.com"]
[Source "ChessBase"]
[SourceQuality "1"]
[TimeControl "2700+10"]

1. Nf3 {[%emt 0:00:10]} Nf6 {[%emt 0:00:10]} 2. g3 {[%emt 0:00:10]} c5 {[%emt 0:00:06]} 3. c4 {[%emt 0:01:22]} d5 {[%emt 0:00:38]} 4. d4 {[%emt 0:01:17]} dxc4 {[%emt 0:01:58]} 5. Qa4+ {[%emt 0:00:04]} Bd7 {[%emt 0:10:45]} 6. Qxc4 {[%emt 0:00:05]} cxd4 {[%emt 0:00:02]} 7. Bg2 {[%emt 0:01:30]} Bc6 {[%emt 0:03:51]} 8. O-O {[%emt 0:00:20]} Nbd7 {[%emt 0:00:49]} 9. Rd1 {[%emt 0:03:09]} e6 {[%emt 0:00:30]} 10. Nxd4 {[%emt 0:03:59]} Bxg2 {[%emt 0:00:05]} 11. Kxg2 {[%emt 0:00:01]} Rc8 {[%emt 0:02:04]} 12. Qa4 {[%emt 0:03:10]} Qb6 {[%emt 0:01:19]} 13. Nc3 {[%emt 0:02:53]} Be7 {[%emt 0:05:39]} 14. Be3 {[%emt 0:05:04]} Qa6 {[%emt 0:03:10]} 15. Qxa6 {[%emt 0:06:05]} bxa6 {[%emt 0:00:01]} 16. Rac1 {[%emt 0:00:12]} Nb6 {[%emt 0:01:14]} 17. Bg5 {[%emt 0:02:20]} O-O {[%emt 0:00:59]} 18. Ne4 {[%emt 0:01:18]} Nfd5 {[%emt 0:02:16]} 19. Bxe7 {[%emt 0:02:34]} Nxe7 {[%emt 0:00:02]} 20. Nc5 {[%emt 0:00:10]} Rfd8 {[%emt 0:03:30]} 21. Ndb3 {[%emt 0:00:14]} Rxd1 {[%emt 0:02:05]} 22. Rxd1 {[%emt 0:00:02]} Nc4 {[%emt 0:03:57]} 23. Nd3 {[%emt 0:08:05]} a5 {[%emt 0:00:59]} 24. Nbc5 {[%emt 0:01:15]} h6 {[%emt 0:00:54]} 25. Rc1 {[%emt 0:00:22]} Nb6 {[%emt 0:00:11]} 26. b3 {[%emt 0:00:20]} Nf5 {[%emt 0:01:30]} 27. e3 {[%emt 0:00:30]} Nd6 {[%emt 0:00:14]} 28. Kf3 {[%emt 0:00:12]} Kf8 {[%emt 0:00:17]} 29. e4 {[%emt 0:00:23]} Ke7 {[%emt 0:00:06]} 30. Ke3 {[%emt 0:00:10]} Rc7 {[%emt 0:00:27]} 31. a4 {[%emt 0:00:20]} Ndc8 {[%emt 0:00:21]} 32. h4 {[%emt 0:00:23]} h5 {[%emt 0:00:04]} 33. f3 {[%emt 0:00:28]} g6 {[%emt 0:00:02]} 34. g4 {[%emt 0:00:05]} Nd6 {[%emt 0:00:24]} 35. gxh5 {[%emt 0:00:02]} gxh5 {[%emt 0:00:01]} 36. Rg1 {[%emt 0:00:02]} Nb7 {[%emt 0:00:19]} 37. Rg5 {[%emt 0:00:26]} Nxc5 {[%emt 0:00:09]} 38. Nxc5 {[%emt 0:00:02]} Nc8 {[%emt 0:00:10]} 39. Rxh5 {[%emt 0:00:10]} Nd6 {[%emt 0:00:08]} 40. Nd3 {[%emt 0:00:06]} Rc3 {[%emt 0:00:11]} 41. Rxa5 {[%emt 0:00:08]} Rxb3 {[%emt 0:00:01]} 42. Rxa7+ {[%emt 0:00:01]} Kf8 {[%emt 0:00:01]} 43. Kd4 {[%emt 0:00:35]} Ra3 {[%emt 0:00:05]} 44. Ra6 {[%emt 0:00:02]} Ne8 {[%emt 0:00:33]} 45. Ra8 {[%emt 0:00:07]} Ke7 {[%emt 0:00:01]} 46. h5 {[%emt 0:00:52]} Nc7 {[%emt 0:00:19]} 47. h6 {[%emt 0:00:38]} Nxa8 {[%emt 0:00:11]} 48. h7 {[%emt 0:00:02]} Rxa4+ {[%emt 0:00:02]} 49. Ke3 {[%emt 0:00:06]} Nb6 {[%emt 0:00:09]} 50. h8=Q {[%emt 0:00:02]} Nc4+ {[%emt 0:00:01]} 51. Kf4 {[%emt 0:00:08]} 1-0

[Event "14th Danzhou Super GM 2023"]
[Site "Danzhou"]
[Date "2023.11.16"]
[Round "1.3"]
[White "Ma, Qun"]
[Black "Liu, Yan"]
[Result "1-0"]
[ECO "C42"]
[WhiteElo "2653"]
[BlackElo "2579"]
[Annotator "TA"]
[PlyCount "97"]
[EventDate "2023.11.16"]
[EventType "tourn"]
[EventCountry "CHN"]
[SourceTitle "playchess.com"]
[Source "ChessBase"]
[SourceQuality "1"]
[TimeControl "2700+10"]

{[%evp 15,97,27,29,14,13,16,15,16,16,26,26,13,24,0,24,29,13,25,25,27,33,27,31,27,27,30,30,27,90,92,131,141,117,130,131,103,165,162,145,145,145,145,150,151,119,190,182,146,135,132,118,129,259,264,239,214,346,322,319,269,232,218,331,59,958,927,477,416,2684,2578,2548,2194,2262,2274,1702,1500,29988,29989,29989,29983,29981,29981,29992,29993]} 1. e4 {[%emt 0:00:09]} e5 {[%emt 0:00:08]} 2. Nf3 {[%emt 0:00:06]} Nf6 {[%emt 0:00:14][%cal Bg8f6,Bf6e4,Be4d6][%mdl 32]} 3. Nxe5 {[%emt 0:00:17]} d6 {[%emt 0:00:07]} 4. Nf3 {[%emt 0:00:07]} Nxe4 {[%emt 0:00:12]} 5. d4 {[%emt 0:00:16]} d5 {[%emt 0:00:34]} 6. Bd3 {[%emt 0:00:07]} Bf5 {[%emt 0:00:46]} 7. O-O {[%emt 0:00:05]} Be7 {[%emt 0:00:05]} 8. Re1 {[%emt 0:00:16]} O-O {[%emt 0:00:34]} 9. Nbd2 {[%emt 0:00:09][%cal Rd2e4]} Nd6 $1 {[%emt 0:00:31]} 10. Nf1 {[%emt 0:00:10]} c6 {[%emt 0:01:12]} 11. Bf4 {[%emt 0:00:08] The position is equal.} Bxd3 {[%emt 0:00:43]} 12. Qxd3 {[%emt 0:00:05]} Na6 {[%emt 0:00:12] [#]} 13. h4 $1 {[%emt 0:00:06]} Nc7 {[%emt 0:01:25]} 14. Ng5 {[%emt 0:00:04]} Bxg5 {[%emt 0:01:07]} (14... g6 $5) 15. Bxg5 {[%emt 0:00:03]} f6 {[%emt 0:00:23] Black is weak on the dark squares} 16. Bf4 {[%emt 0:00:02]} Qd7 {[%emt 0:00:43]} 17. Ne3 {[%emt 0:00:15][%cal Bf1e3,Be3f5,Bf5h6][%mdl 32]} Rfe8 {[%emt 0:00:57]} 18. Re2 {[%emt 0:00:09]} Ne6 {[%emt 0:13:58]} 19. Bxd6 {[%emt 0:00:05]} Qxd6 {[%emt 0:00:02]} 20. Nf5 {[%emt 0:00:11]} Qd7 {[%emt 0:03:12] And now ...Nf4 would win.} 21. Qh3 {[%emt 0:00:02]} Nf8 {[%emt 0:13:38]} (21... Kh8 $1 $11 {remains equal.}) 22. Rae1 $16 {[%emt 0:01:01][%cal Ba1e1,Be1e2,Be2e6][%mdl 32]} Rxe2 {[%emt 0:00:05]} 23. Rxe2 {[%emt 0:00:02] Re7 would be deadly.} g6 {[%emt 0:00:12]} 24. Nh6+ {[%emt 0:03:37]} Kg7 {[%emt 0:00:03] ...Qxh3 is the strong threat.} 25. Qe3 {[%emt 0:01:02] White is much more active. The black rooks are badly placed.} Qe6 {[%emt 0:05:57] Dodges g4} 26. Qxe6 $18 {[%emt 0:02:43]} Nxe6 {[%emt 0:00:02]} 27. Rxe6 {[%emt 0:00:04] Threatens to win with Ng4.} Kxh6 {[%emt 0:00:02]} 28. Rxf6 {[%emt 0:10:07][%mdl 4096] Endgame KR-KR} Re8 {[%emt 0:00:10]} 29. Rf7 {[%emt 0:00:59]} Re1+ {[%emt 0:00:52]} 30. Kh2 {[%emt 0:00:02][%cal Of2f4]} Re2 {[%emt 0:00:27]} 31. g4 {[%emt 0:19:45]} g5 {[%emt 0:00:02]} 32. Rf6+ {[%emt 0:00:05]} ({But not} 32. Rxb7 $6 Rxf2+ 33. Kg3 Rxc2 $11) 32... Kg7 {[%emt 0:00:01]} 33. hxg5 {[%emt 0:00:02] Strongly threatening Kg3.} h6 {[%emt 0:00:52]} (33... Rxc2 $16 {might work better.} 34. Kg3 Rxb2) 34. Rf5 {[%emt 0:00:57]} ({Less strong is} 34. Rxh6 Rxf2+ 35. Kg3 Rxc2 $14) 34... Rxc2 {[%emt 0:00:19]} 35. Kg3 {[%emt 0:01:53]} Rxb2 {[%emt 0:00:07]} (35... hxg5 $142 36. Rxg5+ Kf7) 36. f4 {[%emt 0:04:07][%cal Bf2f4,Bf4f5][%mdl 32]} hxg5 {[%emt 0:00:52]} 37. Rxg5+ {[%emt 0:00:01]} Kf6 {[%emt 0:00:09]} 38. Rf5+ {[%emt 0:00:12]} Kg6 {[%emt 0:00:04]} (38... Kg7 $142 39. Re5 Kf7) 39. Re5 $2 {[%emt 0:00:38]} (39. Rh5 $18) 39... Rxa2 $2 {[%emt 0:00:07][%mdl 8192]} (39... Rd2 $14) 40. Re6+ {[%emt 0:00:01]} Kf7 {[%emt 0:00:04] [#]} 41. f5 $1 {[%emt 0:00:01]} a5 {[%emt 0:00:07] [#]} (41... Ra3+ $142 42. Kf4 Rd3) 42. g5 $1 {[%emt 0:00:04][%cal Bg4g5,Bg5g6][%mdl 32] Black must now prevent g6+.} Ra1 {[%emt 0:00:30]} 43. g6+ {[%emt 0:00:13]} Kf8 {[%emt 0:00:03]} 44. Kf4 {[%emt 0:01:10] White threatens Kg5 and mate.} Rg1 {[%emt 0:00:24]} 45. Rf6+ {[%emt 0:00:01]} Kg8 {[%emt 0:00:12]} 46. Rf7 {[%emt 0:00:02] White mates.} a4 {[%emt 0:00:07]} 47. Rxb7 {[%emt 0:00:03]} a3 {[%emt 0:00:03]} 48. Ra7 {[%emt 0:00:04]} Re1 {[%emt 0:00:23]} 49. f6 {[%emt 0:00:12] Weighted Error Value: White=0.20 (precise) /Black=0.32} 1-0

[Event "14th Danzhou Super GM 2023"]
[Site "Danzhou"]
[Date "2023.11.16"]
[Round "1.4"]
[White "Tan, Zhongyi"]
[Black "Cheparinov, Ivan"]
[Result "1/2-1/2"]
[ECO "E51"]
[WhiteElo "2513"]
[BlackElo "2649"]
[Annotator "TA"]
[PlyCount "132"]
[EventDate "2023.11.16"]
[EventType "tourn"]
[EventCountry "CHN"]
[SourceTitle "playchess.com"]
[Source "ChessBase"]
[SourceQuality "1"]
[TimeControl "2700+10"]

{[%evp 11,132,0,2,-6,0,-6,0,-10,0,-6,0,0,17,11,13,0,29,-2,0,-16,0,-12,-2,-27,-18,-14,0,-2,0,0,0,0,0,0,0,0,0,0,50,29,76,73,106,101,106,101,97,106,120,99,82,89,99,93,129,110,167,80,86,81,86,84,95,88,64,53,154,114,229,204,223,188,187,191,202,180,241,237,266,253,261,261,242,158,291,300,283,153,152,79,74,64,92,8,8,8,8,8,13,8,8,0,0,0,0,0,0,0,0,0,0,0,8,0,0,0,0,0,0,0,0,0,8]} 1. d4 {[%emt 0:00:04]} Nf6 {[%emt 0:00:03]} 2. c4 {[%emt 0:00:03]} e6 {[%emt 0:00:02]} 3. Nc3 {[%emt 0:00:18]} Bb4 {[%emt 0:00:02]} 4. Bd2 {[%emt 0:00:17]} O-O {[%emt 0:00:16]} 5. e3 {[%emt 0:00:02]} d5 {[%emt 0:00:02]} 6. Nf3 {[%emt 0:00:06]} Nbd7 {[%emt 0:00:03]} 7. Rc1 {[%emt 0:01:16] 7.a3 is the modern continuation. E51: Nimzo-Indian: Rubinstein: 4...0-0 5 Nf3 d5.} Be7 {[%emt 0:00:10]} 8. Qb3 {[%emt 0:00:46][%cal Rc4d5]} c6 {[%emt 0:04:25] [#]} 9. Be2 $146 {[%emt 0:03:06]} ({Predecessor:} 9. Bd3 b6 10. O-O Ba6 11. Rfd1 dxc4 12. Bxc4 Bxc4 13. Qxc4 c5 14. Be1 {½-½ Priehoda,V (2440)-Katz,R Sala 1993}) 9... dxc4 {[%emt 0:02:19]} 10. Qxc4 {[%emt 0:00:26]} c5 {[%emt 0:00:26]} 11. dxc5 {[%emt 0:04:04]} Nxc5 {[%emt 0:00:17]} 12. b4 {[%emt 0:01:13]} Ncd7 {[%emt 0:01:09]} 13. O-O {[%emt 0:00:25]} a6 {[%emt 0:05:25]} 14. a4 {[%emt 0:03:10]} b6 {[%emt 0:00:20]} 15. Rfd1 {[%emt 0:04:06]} Bb7 {[%emt 0:00:03]} 16. Qb3 {[%emt 0:00:58]} Bd6 {[%emt 0:00:56]} 17. b5 {[%emt 0:02:42]} (17. Be1 $5 {[%cal Rd1d6]} Qe7 18. Rb1 $11) 17... Nc5 {[%emt 0:04:17]} 18. Qb1 {[%emt 0:00:33]} a5 {[%emt 0:01:29]} 19. Nd4 {[%emt 0:01:01]} Nfe4 {[%emt 0:04:15]} (19... Qc7 {simplifies} 20. h3 e5 21. Nc6 Bxc6 22. bxc6 Qxc6 23. e4 Nfxe4 24. Nxe4 Qxe4 25. Qxe4 Nxe4 26. Bf3 f5) 20. Nxe4 {[%emt 0:00:03]} Bxe4 {[%emt 0:00:23]} 21. Qa2 {[%emt 0:00:09]} Qh4 {[%emt 0:01:50]} 22. g3 {[%emt 0:00:54]} Qh3 {[%emt 0:00:49][%csl Ge4][%cal Rh3g2]} 23. Bf1 {[%emt 0:00:18] Against Qg2+} Qh5 {[%emt 0:01:05]} 24. Be2 {[%emt 0:01:21]} Qg6 {[%emt 0:01:07]} (24... Qd5 $11 25. Bc4 Qb7) 25. Be1 {[%emt 0:00:49][%cal Bd2e1,Be1c3,Bc3d4][%mdl 32]} Bd5 {[%emt 0:05:04]} (25... Rfc8 $11 {should be considered.}) 26. Bc4 $1 $16 {[%emt 0:00:08]} Bxc4 {[%emt 0:02:17]} 27. Qxc4 {[%emt 0:00:07]} Rfe8 {[%emt 0:00:16]} 28. Nc6 {[%emt 0:00:21]} Bf8 {[%emt 0:00:04]} 29. Bc3 {[%emt 0:00:46]} Ne4 {[%emt 0:00:18]} 30. Kg2 {[%emt 0:01:57]} Ba3 {[%emt 0:01:09]} 31. Ra1 {[%emt 0:00:14]} Bc5 {[%emt 0:01:36]} 32. Bd4 {[%emt 0:01:00]} Qf5 {[%emt 0:00:31]} 33. f3 {[%emt 0:00:28] And now Qd3 would win.} Ng5 {[%emt 0:00:49]} (33... Bxd4 $16 34. Nxd4 Qe5) 34. Qe2 {[%emt 0:00:06] Active counter play!} (34. Rf1 $1 $18 {and White stays clearly on top. aiming for Bxc5.} Bxd4 35. Qxd4) 34... Bxd4 {[%emt 0:00:05]} 35. Rxd4 {[%emt 0:01:13]} e5 {[%emt 0:00:06]} 36. Rd5 {[%emt 0:00:40]} Qh3+ {[%emt 0:00:46]} 37. Kh1 {[%emt 0:01:48]} Qh5 {[%emt 0:00:21]} 38. Rf1 {[%emt 0:02:19][%cal Oe3e4]} h6 {[%emt 0:02:16]} (38... Ne4 $1 $14 39. Qe1 Nc5) 39. Qf2 {[%emt 0:02:53]} ({And not} 39. Nxe5 Ne4 40. g4 Ng3+ 41. Kg2 Nxe2 $15) (39. Rxe5 Rxe5 40. g4 (40. Nxe5 Ne4 $15 {[%mdl 64] Pin}) 40... Qg6 41. Nxe5 Qe6 $11) 39... f5 {[%emt 0:02:54]} (39... Rac8 $16) 40. Nxe5 $18 {[%emt 0:01:01]} ({Much less strong is} 40. Rxe5 $6 Rxe5 41. Nxe5 Qe8 $16) 40... Rad8 {[%emt 0:00:15]} 41. Rxd8 {[%emt 0:02:39]} Rxd8 {[%emt 0:00:01]} 42. h4 {[%emt 0:00:07]} Nf7 {[%emt 0:01:47] [#]} 43. Nc6 {[%emt 0:00:46]} ({Don't do} 43. Qa2 Re8 44. f4 Re7 $16) 43... Rd7 {[%emt 0:00:15]} (43... Re8 $142 44. Nd4 Kh7) 44. Kg2 {[%emt 0:00:41]} Qg6 {[%emt 0:00:05] [#]} 45. Rd1 $3 {[%emt 0:00:07][%mdl 576] Deflection} Qe6 {[%emt 0:00:10]} 46. Rxd7 {[%emt 0:00:34]} Qxd7 {[%emt 0:00:01][%mdl 4096] Endgame KQN-KQN} 47. Qb2 {[%emt 0:00:30]} Kf8 {[%emt 0:00:15]} (47... Qd3 $16 {was called for.} 48. Ne7+ Kh7) 48. Qd4 {[%emt 0:00:24]} Qxd4 {[%emt 0:00:01]} 49. Nxd4 {[%emt 0:00:02] KN-KN} (49. exd4 $18 {Black must now prevent Ne5.} Nd6 50. Ne5) 49... Nd6 $16 {[%emt 0:00:03]} 50. Kf2 {[%emt 0:00:46]} (50. Kf1 $142) 50... g6 {[%emt 0:00:30]} 51. Ne2 {[%emt 0:00:30]} Nb7 {[%emt 0:00:09] [#]} 52. Nf4 {[%emt 0:00:56]} (52. Nc3 $1 $16 {[%cal Rc3d5]}) 52... Nc5 $11 {[%emt 0:00:00] The position is equal.} 53. Nxg6+ {[%emt 0:00:03]} Kf7 $1 {[%emt 0:00:15]} 54. Ne5+ {[%emt 0:00:01]} Ke6 {[%emt 0:00:01]} 55. Nc4 {[%emt 0:00:01] Strongly threatening Nb2.} Nxa4 {[%emt 0:00:02]} 56. e4 {[%emt 0:00:02]} fxe4 {[%emt 0:00:02]} 57. fxe4 {[%emt 0:00:01]} Nc3 {[%emt 0:00:13]} 58. Ke3 {[%emt 0:00:43]} Nxb5 {[%emt 0:00:26]} 59. Nxb6 {[%emt 0:00:05]} h5 {[%emt 0:00:19]} 60. Na4 {[%emt 0:01:09]} Ke5 {[%emt 0:00:21]} 61. Nb2 {[%emt 0:00:02] Nc4+ would be deadly.} Ke6 {[%emt 0:00:07]} 62. Kf4 {[%emt 0:01:30]} Nc3 {[%emt 0:00:06]} 63. Nd3 {[%emt 0:00:33]} a4 {[%emt 0:00:06]} 64. Nc5+ {[%emt 0:00:02]} Kd6 {[%emt 0:00:17]} (64... Kf7 $5 {[%cal Ra4a3]}) 65. Nxa4 {[%emt 0:00:03]} Nxa4 {[%emt 0:00:01]} 66. Kg5 {[%emt 0:00:02]} Ke5 {[%emt 0:00:04] Black escapes into a draw.   Weighted Error Value: White=0.15 (very precise) /Black=0.16 (very precise)} 1/2-1/2

[Event "14th Danzhou Super GM 2023"]
[Site "Danzhou"]
[Date "2023.11.16"]
[Round "2.1"]
[White "Bu, Xiangzhi"]
[Black "Cheparinov, Ivan"]
[Result "1-0"]
[ECO "A20"]
[WhiteElo "2677"]
[BlackElo "2649"]
[Annotator "TA"]
[PlyCount "93"]
[EventDate "2023.11.16"]
[EventType "tourn"]
[EventCountry "CHN"]
[SourceTitle "playchess.com"]
[Source "ChessBase"]
[SourceQuality "1"]
[TimeControl "2700+10"]

{[%evp 9,93,0,0,-9,6,-9,0,-6,0,-28,3,0,20,27,32,20,13,14,77,49,35,55,51,17,20,17,23,10,64,59,166,167,170,170,172,172,170,170,170,173,173,173,166,170,164,152,154,158,195,192,202,202,205,205,204,197,200,200,198,190,196,192,205,195,198,198,196,193,209,208,320,310,419,388,313,312,280,273,313,307,373,373,373,367,373,373]} 1. c4 {[%emt 0:00:10]} e5 {[%emt 0:00:02]} 2. d3 {[%emt 0:00:03]} Bb4+ {[%emt 0:00:08]} 3. Nd2 {[%emt 0:00:03]} c5 {[%emt 0:00:06]} 4. Ngf3 {[%emt 0:00:10]} Nc6 {[%emt 0:00:04]} 5. g3 {[%emt 0:00:05]} Nge7 {[%emt 0:00:19]} 6. Bg2 {[%emt 0:00:03]} O-O {[%emt 0:00:09]} 7. O-O {[%emt 0:00:05]} Ba5 {[%emt 0:00:02]} 8. b3 {[%emt 0:01:10] The position is equal.} d6 {[%emt 0:00:22]} 9. Bb2 {[%emt 0:00:09]} f5 {[%emt 0:01:12]} 10. e3 {[%emt 0:00:13][%cal Be2e3,Be3d4,Bd4e5][%mdl 32]} Ng6 {[%emt 0:00:38]} 11. Ne1 {[%emt 0:00:47]} Be6 {[%emt 0:00:55] [#]} 12. d4 $1 {[%emt 0:06:00]} cxd4 {[%emt 0:04:42]} 13. exd4 {[%emt 0:00:02] And now d5 would win.} d5 {[%emt 0:00:48]} ({But not} 13... exd4 14. Ndf3 $16) (13... Bf7 $11) 14. dxe5 {[%emt 0:10:00] Nd3 would be deadly.} (14. Nd3 $5 {[%cal Rd3c5]}) 14... Bxd2 {[%emt 0:01:20][%mdl 64] Remove Defender} 15. Qxd2 {[%emt 0:00:30][%cal Rc4d5]} dxc4 {[%emt 0:00:01]} 16. Qe2 {[%emt 0:06:51]} (16. Qc3 $5 {[%cal Re1f3]}) 16... cxb3 {[%emt 0:00:47]} 17. axb3 {[%emt 0:02:31]} Bxb3 {[%emt 0:08:10]} 18. Nf3 {[%emt 0:00:26]} Re8 {[%emt 0:00:54]} (18... a5 $1 $11) 19. Qe3 $36 {[%emt 0:05:23][%mdl 2048] White has some pressure.} Qb6 {[%emt 0:03:14] [#] Black is on the road to losing.} ({Better is} 19... Be6 $14) 20. Bd4 $1 $18 {[%emt 0:00:16]} Nxd4 {[%emt 0:00:33]} 21. Nxd4 {[%emt 0:00:02]} Bc4 {[%emt 0:00:23]} 22. Rfb1 {[%emt 0:00:01]} Qc5 {[%emt 0:02:26]} 23. f4 {[%emt 0:00:36]} ({Weaker is} 23. Bxb7 Rxe5 24. Qa3 Rd8 $11) 23... Nxe5 {[%emt 0:02:31]} 24. fxe5 {[%emt 0:00:07]} Rxe5 {[%emt 0:00:01]} 25. Qf2 {[%emt 0:00:29]} Rd8 {[%emt 0:01:43] [#]} 26. Nf3 {[%emt 0:03:26]} Qxf2+ {[%emt 0:00:03]} 27. Kxf2 {[%emt 0:00:01]} Re2+ {[%emt 0:00:58]} 28. Kg1 {[%emt 0:00:02]} Ba6 {[%emt 0:16:18]} 29. Bf1 {[%emt 0:03:54]} Re7 {[%emt 0:00:00]} 30. Bxa6 {[%emt 0:00:16]} bxa6 {[%emt 0:00:00]} 31. Rxa6 {[%emt 0:00:01]} g6 {[%emt 0:00:00]} 32. Rba1 {[%emt 0:00:17]} Rdd7 {[%emt 0:00:00]} 33. Re1 {[%emt 0:00:12]} Rxe1+ 34. Nxe1 {[%emt 0:00:02][%mdl 4096] Endgame KRN-KR} Kg7 {[%emt 0:00:00]} 35. Nf3 {[%emt 0:00:07]} Kh6 {[%emt 0:00:00]} 36. Kf2 {[%emt 0:00:06]} Rb7 {[%emt 0:00:00]} 37. Ra4 {[%emt 0:00:41]} Re7 {[%emt 0:00:00]} 38. h3 {[%emt 0:00:38]} Rb7 {[%emt 0:00:00]} 39. Nd4 {[%emt 0:00:10]} Re7 {[%emt 0:00:00]} (39... Kg7 $142 40. Kf3 Rd7) 40. Ra6 {[%emt 0:00:10]} Kh5 {[%emt 0:00:08]} 41. Ne6 {[%emt 0:00:10]} Rb7 {[%emt 0:00:10]} 42. Ra4 {[%emt 0:00:10][%csl Gg3][%cal Ra4h4]} g5 {[%emt 0:00:10] Prevents Rh4+} 43. Nd4 {[%emt 0:00:10]} Rb2+ {[%emt 0:00:10]} 44. Kf3 {[%emt 0:00:10]} g4+ {[%emt 0:00:10]} 45. hxg4+ {[%emt 0:00:10] White is winning.} fxg4+ {[%emt 0:00:10]} 46. Ke4 {[%emt 0:00:10]} Rf2 {[%emt 0:02:51]} 47. Rxa7 {[%emt 0:02:05] Weighted Error Value: White=0.03 (flawless) /Black=0.22 (precise)} 1-0